fUSD/lending_fUSD_20250806
["ID","MTS","AMOUNT","RATE_DAILY","PERIOD"]
[377627913,1754466658538,-400.0,0.00035616,14]
[377627914,1754466658547,-1624.34,0.00035616,14]
[377627915,1754466658556,-1493.64,0.00035616,14]
[377627916,1754466658565,-1912.82,0.00035616,14]
[377627917,1754466658576,-400.0,0.00035616,14]
[377627918,1754466658586,-535.78,0.00035616,14]
[377627919,1754466658595,-1545.42,0.00035616,14]
[377627920,1754466658605,-1315.35,0.00035616,14]
[377627921,1754466658614,-151.0,0.00035616,7]
[377627922,1754466658624,-400.0,0.00035616,14]
[377627923,1754466658633,-300.0,0.00035616,14]
[377627924,1754466658642,-400.0,0.00035616,14]
[377627925,1754466658652,-400.0,0.00035616,14]
[377627926,1754466658661,-400.0,0.00035616,14]
[377627927,1754466658671,-400.0,0.00035616,14]
[377627928,1754466658680,-1913.07,0.00035616,14]
[377627929,1754466658690,-845.1,0.00035616,14]
[377627930,1754466658699,-505.87431655,0.00035616,14]
[377627931,1754466658709,-400.0,0.00035616,14]
[377627932,1754466658719,-400.0,0.00035616,14]
[377627933,1754466658728,-400.0,0.00035616,14]
[377627934,1754466658737,-832.76,0.00035616,14]
[377627935,1754466658746,-1650.57,0.00035616,14]
[377627936,1754466658757,-400.0,0.00035616,14]
[377627937,1754466658768,-535.43,0.00035616,14]
[377627938,1754466658777,-4057.06,0.00035616,14]
[377627939,1754466658787,-400.0,0.00035616,14]
[377627940,1754466658798,-403.19223395,0.00035616,14]
[377627941,1754466658808,-2407.56,0.00035616,14]
[377627942,1754466658817,-661.73,0.00035616,14]
[377627943,1754466658826,-836.51,0.00035616,14]
[377627944,1754466658836,-1044.72,0.00035616,14]
[377627945,1754466658847,-1520.4,0.00035616,14]
[377627946,1754466658856,-2903.24,0.00035616,14]
[377627947,1754466658867,-1002.18,0.00035616,14]
[377627948,1754466658876,-400.0,0.00035616,14]
[377627949,1754466658886,-2598.61,0.00035616,14]
[377627950,1754466658896,-400.0,0.00035616,14]
[377627951,1754466658906,-423.43,0.00035616,14]
[377627952,1754466658915,-400.0,0.00035616,14]
[377627953,1754466658925,-479.03,0.00035616,14]
[377627954,1754466658934,-400.0,0.00035616,14]
[377627955,1754466658944,-1450.07,0.00035616,14]
[377627956,1754466658954,-1788.18,0.00035616,14]
[377627957,1754466658963,-2457.6,0.00035616,14]
[377627958,1754466658973,-170.348745,0.00035616,7]
[377627959,1754466658982,-400.0,0.00035616,14]
[377627960,1754466658991,-400.0,0.00035616,14]
[377627961,1754466659001,-400.0,0.00035616,14]
[377627962,1754466659011,-819.57,0.00035616,14]
[377627963,1754466659021,-400.0,0.00035616,14]
[377627964,1754466659031,-400.0,0.00035616,14]
[377627965,1754466659040,-214.606789,0.00035616,7]
[377627966,1754466659050,-1180.01,0.00035616,14]
[377627967,1754466659061,-825.12,0.00035616,14]
[377627968,1754466659070,-400.0,0.00035616,14]
[377627969,1754466659079,-214.606789,0.00035616,7]
[377627970,1754466659088,-1721.87,0.00035616,14]
[377627971,1754466659098,-400.0,0.00035616,14]
[377627972,1754466659108,-1625.5,0.00035616,14]
[377627973,1754466659117,-400.0,0.00035616,14]
[377627974,1754466659128,-214.606789,0.00035616,7]
[377627975,1754466659137,-2830.73,0.00035616,14]
[377627976,1754466659147,-214.606789,0.00035616,7]
[377627977,1754466659156,-1246.76,0.00035616,14]
[377627978,1754466659165,-214.606789,0.00035616,7]
[377627979,1754466659175,-628.51,0.00035616,14]
[377627980,1754466659184,-214.606789,0.00035616,7]
[377627981,1754466659193,-214.606789,0.00035616,7]
[377627982,1754466659203,-638.97,0.00035616,14]
[377627983,1754466659212,-658.67,0.00035616,14]
[377627984,1754466659222,-400.0,0.00035616,14]
[377627985,1754466659231,-214.606789,0.00035616,7]
[377627986,1754466659241,-214.606789,0.00035616,7]
[377627987,1754466659251,-2770.32,0.00035616,14]
[377627988,1754466659260,-214.606789,0.00035616,7]
[377627989,1754466659270,-400.0,0.00035616,14]
[377627990,1754466659285,-214.606789,0.00035616,7]
[377627991,1754466659294,-214.606789,0.00035616,7]
[377627992,1754466659303,-214.606789,0.00035616,7]
[377627993,1754466659315,-400.0,0.00035616,14]
[377627994,1754466659323,-214.606789,0.00035616,7]
[377627995,1754466659333,-817.98,0.00035616,14]
[377627996,1754466659343,-214.606789,0.00035616,7]
[377627997,1754466659354,-2097.62,0.00035616,14]
[377627998,1754466659364,-214.606789,0.00035616,7]
[377627999,1754466659373,-400.0,0.00035616,14]
[377628000,1754466659383,-214.606789,0.00035616,7]
[377628001,1754466659393,-214.606789,0.00035616,7]
[377628002,1754466659403,-449.21513889,0.00035616,14]
[377628003,1754466659414,-400.0,0.00035616,14]
[377628004,1754466659424,-1836.82,0.00035616,14]
[377628005,1754466659435,-434.18,0.00035616,14]
[377628006,1754466659445,-400.0,0.00035616,14]
[377628007,1754466659455,-400.0,0.00035616,14]
[377628008,1754466659464,-902.95,0.00035616,14]
[377628009,1754466659474,-400.0,0.00035616,14]
[377628010,1754466659483,-405.92,0.00035616,14]
[377628011,1754466659493,-1466.54,0.00035616,14]
[377628012,1754466659502,-1821.93,0.00035616,14]
[377628013,1754466659513,-611.21,0.00035616,14]
[377628014,1754466659523,-2805.05,0.00035616,14]
[377628015,1754466659533,-400.0,0.00035616,14]
[377628016,1754466659542,-400.91587223,0.00035616,14]
[377628017,1754466659552,-1913.66,0.00035616,14]
[377628018,1754466659562,-933.13,0.00035616,14]
[377628019,1754466659572,-3286.94,0.00035616,14]
[377628020,1754466659582,-792.05,0.00035616,14]
[377628021,1754466659592,-400.0,0.00035616,14]
[377628022,1754466659602,-151.0,0.00035616,7]
[377628023,1754466659611,-153.673008,0.00035616,7]
[377628024,1754466659620,-3495.31,0.00035616,14]
[377628025,1754466659630,-1381.59,0.00035616,14]
[377628026,1754466659639,-400.0,0.00035616,14]
[377628027,1754466659648,-445.31,0.00035616,14]
[377628028,1754466659658,-1293.83,0.00035616,14]
[377628029,1754466659667,-400.0,0.00035616,14]
[377628030,1754466659676,-400.0,0.00035616,14]
[377628031,1754466659686,-2753.2,0.00035616,14]
[377628032,1754466659695,-151.0,0.00035616,7]
[377628033,1754466659705,-400.0,0.00035616,14]
[377628034,1754466659714,-1487.69,0.00035616,14]
[377628035,1754466659724,-400.0,0.00035616,14]
[377628036,1754466659734,-2149.28,0.00035616,14]
[377628037,1754466659743,-400.0,0.00035616,14]
[377628038,1754466659753,-3834.57,0.00035616,14]
[377628039,1754466659763,-151.0,0.00035616,7]
[377628040,1754466659773,-400.0,0.00035616,14]
[377628041,1754466659782,-151.0,0.00035616,7]
[377628042,1754466659791,-400.0,0.00035616,14]
[377628043,1754466659800,-152.203488,0.00035616,7]
[377628044,1754466659810,-400.0,0.00035616,14]
[377628045,1754466659819,-400.0,0.00035616,14]
[377628046,1754466659828,-1765.37,0.00035616,14]
[377628047,1754466659837,-454.8,0.00035616,14]
[377628048,1754466659846,-400.0,0.00035616,14]
[377628049,1754466659855,-500.0,0.00035616,10]
[377628050,1754466659865,-873.805409,0.00035616,7]
[377628051,1754466659874,-400.0,0.00035616,14]
[377628052,1754466659884,-742.14,0.00035616,14]
[377628053,1754466659893,-873.805409,0.00035616,7]
[377628054,1754466659902,-2049.42,0.00035616,14]
[377628055,1754466659917,-511.24771747,0.00035616,14]
[377628056,1754466659937,-873.805409,0.00035616,7]
[377628057,1754466659955,-400.0,0.00035616,14]
[377628058,1754466659974,-873.805409,0.00035616,7]
[377628059,1754466659992,-2147.59,0.00035616,14]
[377628060,1754466660010,-2324.79,0.00035616,14]
[377628061,1754466660028,-873.805409,0.00035616,7]
[377628062,1754466660048,-971.5,0.00035616,14]
[377628063,1754466660071,-873.805409,0.00035616,7]
[377628064,1754466660092,-946.92,0.00035616,14]
[377628065,1754466660113,-873.805409,0.00035616,7]
[377628066,1754466660129,-400.0,0.00035616,14]
[377628067,1754466660146,-471.88,0.00035616,14]
[377628068,1754466660163,-2140.34,0.00035616,14]
[377628069,1754466660180,-873.805409,0.00035616,7]
[377628070,1754466660196,-400.0,0.00035616,14]
[377628071,1754466660213,-873.805409,0.00035616,7]
[377628072,1754466660230,-400.0,0.00035616,14]
[377628073,1754466660248,-873.805408,0.00035616,7]
[377628074,1754466660265,-400.0,0.00035616,14]
[377628075,1754466660284,-567.87,0.00035616,14]
[377628076,1754466660300,-151.0,0.00035616,7]
[377628077,1754466660320,-400.0,0.00035616,14]
[377628078,1754466660336,-151.0,0.00035616,7]
[377628079,1754466660353,-400.0,0.00035616,14]
[377628080,1754466660371,-151.0,0.00035616,7]
[377628081,1754466660387,-1983.09,0.00035616,14]
[377628082,1754466660403,-151.0,0.00035616,7]
[377628083,1754466660418,-151.0,0.00035616,7]
[377628084,1754466660433,-151.0,0.00035616,7]
[377628085,1754466660450,-151.0,0.00035616,7]
[377628086,1754466660466,-151.0,0.00035616,7]
[377628087,1754466660481,-400.0,0.00035616,14]
[377628088,1754466660497,-400.0,0.00035616,14]
[377628089,1754466660514,-151.0,0.00035616,7]
[377628090,1754466660530,-2168.54,0.00035616,14]
[377628091,1754466660546,-586.93,0.00035616,14]
[377628092,1754466660562,-151.0,0.00035616,7]
[377628093,1754466660588,-151.0,0.00035616,7]
[377628094,1754466660604,-151.0,0.00035616,7]
[377628095,1754466660621,-259.252457,0.00035616,7]
[377628096,1754466660636,-792.38,0.00035616,14]
[377628097,1754466660653,-400.0,0.00035616,14]
[377628098,1754466660668,-2822.93,0.00035616,14]
[377628099,1754466660684,-400.0,0.00035616,14]
[377628100,1754466660701,-512.16,0.00035616,14]
[377628101,1754466660717,-400.0,0.00035616,14]
[377628102,1754466660733,-400.0,0.00035616,14]
[377628103,1754466660749,-1875.37,0.00035616,14]
[377628104,1754466660765,-400.0,0.00035616,14]
[377628105,1754466660781,-553.87,0.00035616,14]
[377628106,1754466660797,-400.0,0.00035616,14]
[377628107,1754466660813,-1508.16,0.00035616,14]
[377628108,1754466660829,-706.62,0.00035616,14]
[377628109,1754466660847,-2612.38,0.00035616,14]
[377628110,1754466660867,-151.0,0.00035616,7]
[377628111,1754466660884,-400.0,0.00035616,14]
[377628112,1754466660901,-400.0,0.00035616,14]
[377628113,1754466660917,-169.213446,0.00035616,7]
[377628114,1754466660934,-400.0,0.00035616,14]
[377628115,1754466660951,-801.14,0.00035616,14]
[377628116,1754466660966,-1249.21,0.00035616,14]
[377628117,1754466660983,-2279.73,0.00035616,14]
[377628118,1754466660998,-400.0,0.00035616,14]
[377628119,1754466661014,-1000.0,0.00035616,30]
[377628120,1754466661030,-400.0,0.00035616,14]
[377628121,1754466661045,-1647.7,0.00035616,14]
[377628122,1754466661063,-1035.63,0.00035616,14]
[377628123,1754466661078,-400.4643829,0.00035616,14]
[377628124,1754466661095,-1924.21,0.00035616,14]
[377628125,1754466661110,-1878.03,0.00035616,14]
[377628126,1754466661128,-512.20116664,0.00035616,14]
[377628127,1754466661145,-400.0,0.00035616,2]
[377628128,1754466661161,-400.0,0.00035616,14]
[377628129,1754466661178,-400.0,0.00035616,14]
[377628130,1754466661194,-1000.0,0.00035616,14]
[377628131,1754466661210,-400.0,0.00035616,14]
[377628132,1754466661226,-400.0,0.00035616,14]
[377628133,1754466661241,-358.04407193,0.00035616,14]
[377628134,1754466661257,-400.0,0.00035616,14]
[377628135,1754466661273,-400.0,0.00035616,14]
[377628136,1754466661293,-400.0,0.00035616,14]
[377628137,1754466661309,-400.0,0.00035616,14]
[377628138,1754466661325,-400.0,0.00035616,14]
[377628139,1754466661342,-2203.02,0.00035616,14]
[377628140,1754466661358,-487.32,0.00035616,14]
[377628141,1754466661374,-400.0,0.00035616,14]
[377628142,1754466661390,-2267.17,0.00035616,14]
[377628143,1754466661406,-1209.52,0.00035616,14]
[377628144,1754466661424,-1810.12,0.00035616,14]
[377628145,1754466661440,-400.0,0.00035616,14]
[377628146,1754466661454,-400.0,0.00035616,14]
[377628147,1754466661470,-1981.99,0.00035616,14]
[377628148,1754466661486,-400.0,0.00035616,14]
[377628149,1754466661501,-400.0,0.00035616,14]
[377628150,1754466661516,-400.0,0.00035616,14]
[377628151,1754466661531,-400.0,0.00035616,14]
[377628152,1754466661546,-400.0,0.00035616,14]
[377628153,1754466661562,-500.0,0.00035616,14]
[377628154,1754466661576,-1810.02,0.00035616,14]
[377628155,1754466661591,-500.0,0.00035616,14]
[377628156,1754466661606,-500.0,0.00035616,14]
[377628157,1754466661624,-763.49,0.00035616,14]
[377628158,1754466661639,-400.0,0.00035616,14]
[377628159,1754466661654,-2654.86,0.00035616,14]
[377628160,1754466661668,-400.0,0.00035616,14]
[377628161,1754466661684,-196.87726609,0.00035616,14]
[377628162,1754466661701,-400.0,0.00035616,14]
[377628163,1754466661717,-2607.81,0.00035616,14]
[377628164,1754466661732,-3465.9,0.00035616,14]
[377628165,1754466661747,-400.0,0.00035616,14]
[377628166,1754466661761,-156.751712,0.00035616,7]
[377628167,1754466661775,-418.36,0.00035616,14]
[377628168,1754466661792,-400.0,0.00035616,14]
[377628169,1754466661806,-400.0,0.00035616,14]
[377628170,1754466661821,-2165.8,0.00035616,14]
[377628171,1754466661837,-1862.43,0.00035616,14]
[377628172,1754466661851,-400.0,0.00035616,14]
[377628173,1754466661866,-532.2,0.00035616,14]
[377628174,1754466661881,-400.0,0.00035616,14]
[377628175,1754466661897,-400.0,0.00035616,14]
[377628176,1754466661911,-2455.8,0.00035616,14]
[377628177,1754466661927,-688.07,0.00035616,14]
[377628178,1754466661941,-572.3,0.00035616,14]
[377628179,1754466661957,-465.27,0.00035616,14]
[377628180,1754466661971,-400.0,0.00035616,14]
[377628181,1754466661986,-650.24,0.00035616,14]
[377628182,1754466661999,-2229.85,0.00035616,14]
[377628183,1754466662013,-400.0,0.00035616,14]
[377628184,1754466662028,-152.37491,0.00035616,7]
[377628185,1754466662042,-2800.15,0.00035616,14]
[377628186,1754466662055,-400.0,0.00035616,14]
[377628187,1754466662071,-936.45,0.00035616,14]
[377628188,1754466662086,-1719.81,0.00035616,14]
[377628189,1754466662101,-1898.78,0.00035616,14]
[377628190,1754466662115,-1581.96,0.00035616,14]
[377628191,1754466662130,-1559.99,0.00035616,14]
[377628192,1754466662144,-400.0,0.00035616,14]
[377628193,1754466662159,-400.0,0.00035616,14]
[377628194,1754466662174,-440.42,0.00035616,14]
[377628195,1754466662188,-688.49,0.00035616,14]
[377628196,1754466662203,-400.0,0.00035616,14]
[377628197,1754466662219,-400.0,0.00035616,14]
[377628198,1754466662233,-400.0,0.00035616,14]
[377628199,1754466662248,-400.0,0.00035616,14]
[377628200,1754466662262,-1796.51,0.00035616,14]
[377628201,1754466662279,-521.08,0.00035616,14]
[377628202,1754466662294,-400.0,0.00035616,14]
[377628203,1754466662308,-2365.01,0.00035616,14]
[377628204,1754466662323,-400.0,0.00035616,14]
[377628205,1754466662337,-400.33,0.00035616,14]
[377628206,1754466662351,-1040.26,0.00035616,14]
[377628207,1754466662365,-1926.86,0.00035616,14]
[377628208,1754466662378,-1040.26,0.00035616,14]
[377628209,1754466662393,-1040.26,0.00035616,14]
[377628210,1754466662407,-1040.26,0.00035616,14]
[377628211,1754466662423,-1040.26,0.00035616,14]
[377628212,1754466662435,-461.51991749,0.00035616,14]
[377628213,1754466662445,-400.0,0.00035616,14]
[377628214,1754466662455,-1040.26,0.00035616,14]
[377628215,1754466662466,-151.0,0.00035616,7]
[377628216,1754466662476,-1040.26,0.00035616,14]
[377628217,1754466662487,-1040.26,0.00035616,14]
[377628218,1754466662498,-151.0,0.00035616,7]
[377628219,1754466662508,-1040.26,0.00035616,14]
[377628220,1754466662517,-1040.26,0.00035616,14]
[377628221,1754466662526,-151.0,0.00035616,7]
[377628222,1754466662535,-400.0,0.00035616,14]
[377628223,1754466662546,-1040.26,0.00035616,14]
[377628224,1754466662556,-400.0,0.00035616,14]
[377628225,1754466662566,-1040.26,0.00035616,14]
[377628226,1754466662575,-151.0,0.00035616,7]
[377628227,1754466663059,-400.0,0.00035616,14]
[377628228,1754466663171,-1040.26,0.00035616,14]
[377628229,1754466663201,-151.0,0.00035616,7]
[377628230,1754466663235,-1040.26,0.00035616,14]
[377628231,1754466663269,-499.14,0.00035616,14]
[377628232,1754466663282,-1040.26,0.00035616,14]
[377628233,1754466663292,-151.0,0.00035616,7]
[377628234,1754466663302,-151.0,0.00035616,7]
[377628235,1754466663313,-1040.26,0.00035616,14]
[377628236,1754466663323,-151.0,0.00035616,7]
[377628237,1754466663332,-1681.93,0.00035616,14]
[377628238,1754466663342,-1040.26,0.00035616,14]
[377628239,1754466663352,-151.0,0.00035616,7]
[377628240,1754466663362,-151.0,0.00035616,7]
[377628241,1754466663373,-1040.26,0.00035616,14]
[377628242,1754466663383,-1040.26,0.00035616,14]
[377628243,1754466663393,-151.0,0.00035616,7]
[377628244,1754466663402,-151.0,0.00035616,7]
[377628245,1754466663412,-151.0,0.00035616,7]
[377628246,1754466663421,-151.0,0.00035616,7]
[377628247,1754466663431,-151.0,0.00035616,7]
[377628248,1754466663440,-151.0,0.00035616,7]
[377628249,1754466663449,-158.661528,0.00035616,7]
[377628250,1754466663459,-151.0,0.00035616,7]
[377628251,1754466663468,-400.0,0.00035616,14]
[377628252,1754466663478,-151.0,0.00035616,7]
[377628253,1754466663487,-400.0,0.00035616,14]
[377628254,1754466663497,-151.0,0.00035616,7]
[377628255,1754466663507,-463.46,0.00035616,14]
[377628256,1754466663517,-1623.85,0.00035616,14]
[377628257,1754466663527,-155.83211,0.00035616,7]
[377628258,1754466663536,-400.0,0.00035616,14]
[377628259,1754466663546,-400.0,0.00035616,14]
[377628260,1754466663555,-440.36,0.00035616,14]
[377628261,1754466663566,-665.41,0.00035616,14]
[377628262,1754466663576,-400.0,0.00035616,14]
[377628263,1754466663586,-400.0,0.00035616,14]
[377628264,1754466663596,-459.11,0.00035616,14]
[377628265,1754466663606,-400.0,0.00035616,14]
[377628266,1754466663616,-1513.03,0.00035616,14]
[377628267,1754466663626,-400.0,0.00035616,14]
[377628268,1754466663636,-2016.21,0.00035616,14]
[377628269,1754466663645,-400.0,0.00035616,14]
[377628270,1754466663656,-400.0,0.00035616,14]
[377628271,1754466663665,-2302.02,0.00035616,14]
[377628272,1754466663675,-400.0,0.00035616,14]
[377628273,1754466663685,-2685.33,0.00035616,14]
[377628274,1754466663695,-593.29,0.00035616,14]
[377628275,1754466663705,-1002.59,0.00035616,14]
[377628276,1754466663715,-400.0,0.00035616,14]
[377628277,1754466663725,-735.95,0.00035616,14]
[377628278,1754466663735,-735.95,0.00035616,14]
[377628279,1754466663745,-1595.19,0.00035616,14]
[377628280,1754466663754,-735.95,0.00035616,14]
[377628281,1754466663764,-735.95,0.00035616,14]
[377628282,1754466663773,-735.95,0.00035616,14]
[377628283,1754466663783,-400.0,0.00035616,14]
[377628284,1754466663794,-735.95,0.00035616,14]
[377628285,1754466663804,-156.02238182,0.00035616,14]
[377628286,1754466663814,-735.95,0.00035616,14]
[377628287,1754466663824,-735.95,0.00035616,14]
[377628288,1754466663833,-735.95,0.00035616,14]
[377628289,1754466663842,-447.56,0.00035616,14]
[377628290,1754466663852,-401.18399194,0.00035616,14]
[377628291,1754466663862,-605.7,0.00035616,14]
[377628292,1754466663871,-400.0,0.00035616,14]
[377628293,1754466663881,-2284.3,0.00035616,14]
[377628294,1754466663890,-1902.08,0.00035616,14]
[377628295,1754466663899,-400.0,0.00035616,14]
[377628296,1754466663909,-2529.05,0.00035616,14]
[377628297,1754466663918,-922.75,0.00035616,14]
[377628298,1754466663927,-904.52,0.00035616,14]
[377628299,1754466663937,-2387.78,0.00035616,14]
[377628300,1754466663947,-400.0,0.00035616,14]
[377628301,1754466663957,-400.0,0.00035616,14]
[377628302,1754466663967,-1948.18,0.00035616,14]
[377628303,1754466663976,-2005.39,0.00035616,14]
[377628304,1754466663986,-250.0,0.00035616,14]
[377628305,1754466663996,-2127.29,0.00035616,14]
[377628306,1754466664006,-972.15,0.00035616,14]
[377628307,1754466664016,-660.89,0.00035616,14]
[377628308,1754466664026,-1265.45,0.00035616,14]
[377628309,1754466664036,-1011.25,0.00035616,14]
[377628310,1754466664046,-400.0,0.00035616,14]
[377628311,1754466664057,-423.01,0.00035616,14]
[377628312,1754466664067,-400.0,0.00035616,14]
[377628313,1754466664076,-4780.13,0.00035616,14]
[377628314,1754466664087,-2001.88,0.00035616,14]
[377628315,1754466664096,-400.0,0.00035616,14]
[377628316,1754466664106,-448.92,0.00035616,14]
[377628317,1754466664116,-400.0,0.00035616,14]
[377628318,1754466664125,-429.07,0.00035616,14]
[377628319,1754466664134,-686.55,0.00035616,14]
[377628320,1754466664144,-1302.41,0.00035616,14]
[377628321,1754466664154,-403.56,0.00035616,14]
[377628322,1754466664164,-1618.21,0.00035616,14]
[377628323,1754466664174,-3146.67,0.00035616,14]
[377628324,1754466664184,-1750.21,0.00035616,14]
[377628325,1754466664194,-871.25,0.00035616,14]
[377628326,1754466664204,-400.0,0.00035616,14]
[377628327,1754466664214,-970.83,0.00035616,14]
[377628328,1754466664224,-216.70498828,0.00035616,14]
[377628329,1754466664235,-400.0,0.00035616,14]
[377628330,1754466664245,-2111.44,0.00035616,14]
[377628331,1754466664255,-2433.17,0.00035616,14]
[377628332,1754466664265,-682.46,0.00035616,14]
[377628333,1754466664276,-400.0,0.00035616,14]
[377628334,1754466664291,-400.0,0.00035616,14]
[377628335,1754466664302,-434.35,0.00035616,14]
[377628336,1754466664312,-400.0,0.00035616,14]
[377628337,1754466664323,-434.36,0.00035616,14]
[377628338,1754466664333,-2721.87,0.00035616,14]
[377628339,1754466664342,-492.86,0.00035616,14]
[377628340,1754466664352,-400.0,0.00035616,14]
[377628341,1754466664364,-2356.45,0.00035616,14]
[377628342,1754466664375,-2695.57,0.00035616,14]
[377628343,1754466664392,-612.98,0.00035616,14]
[377628344,1754466664402,-2161.81,0.00035616,14]
[377628345,1754466664412,-742.98,0.00035616,14]
[377628346,1754466664423,-476.4,0.00035616,14]
[377628347,1754466664442,-400.0,0.00035616,14]
[377628348,1754466664462,-400.0,0.00035616,14]
[377628349,1754466664472,-514.96,0.00035616,14]
[377628350,1754466664482,-400.0,0.00035616,14]
[377628351,1754466664493,-1659.38,0.00035616,14]
[377628352,1754466664504,-400.0,0.00035616,14]
[377628353,1754466664515,-400.0,0.00035616,14]
[377628354,1754466664525,-528.61,0.00035616,14]
[377628355,1754466664535,-400.0,0.00035616,14]
[377628356,1754466664545,-400.0,0.00035616,14]
[377628357,1754466664555,-400.0,0.00035616,14]
[377628358,1754466664568,-2553.63,0.00035616,14]
[377628359,1754466664578,-400.0,0.00035616,14]
[377628360,1754466664589,-1974.93,0.00035616,14]
[377628361,1754466664598,-904.06,0.00035616,14]
[377628362,1754466664608,-400.0,0.00035616,14]
[377628363,1754466664618,-2416.35,0.00035616,14]
[377628364,1754466664628,-400.0,0.00035616,14]
[377628365,1754466664638,-1699.6,0.00035616,14]
[377628366,1754466664647,-400.0,0.00035616,14]
[377628367,1754466664658,-1635.89,0.00035616,14]
[377628368,1754466664668,-151.0,0.00035616,7]
[377628369,1754466664677,-2639.18,0.00035616,14]
[377628370,1754466664687,-151.0,0.00035616,7]
[377628371,1754466664698,-151.0,0.00035616,7]
[377628372,1754466664708,-702.0,0.00035616,14]
[377628373,1754466664718,-400.0,0.00035616,14]
[377628374,1754466664728,-400.0,0.00035616,14]
[377628375,1754466664739,-206.209934,0.00035616,7]
[377628376,1754466664748,-400.0,0.00035616,14]
[377628377,1754466664759,-400.0,0.00035616,14]
[377628378,1754466664768,-400.0,0.00035616,14]
[377628379,1754466664778,-653.25,0.00035616,14]
[377628380,1754466664787,-1935.36,0.00035616,14]
[377628381,1754466664797,-442.54,0.00035616,14]
[377628382,1754466664807,-1970.39,0.00035616,14]
[377628383,1754466664818,-1029.81,0.00035616,14]
[377628384,1754466664827,-3618.74,0.00035616,14]
[377628385,1754466664837,-400.0,0.00035616,2]
[377628386,1754466664846,-1476.27,0.00035616,14]
[377628387,1754466664856,-273.352879,0.00035616,7]
[377628388,1754466664864,-273.352879,0.00035616,7]
[377628389,1754466664874,-273.352879,0.00035616,7]
[377628390,1754466664883,-273.352879,0.00035616,7]
[377628391,1754466664892,-437.61,0.00035616,14]
[377628392,1754466664902,-2102.48,0.00035616,14]
[377628393,1754466664911,-273.352879,0.00035616,7]
[377628394,1754466664922,-336.96930012,0.00035616,7]
[377628395,1754466664931,-2027.48,0.00035616,14]
[377628396,1754466664940,-400.0,0.00035616,14]
[377628397,1754466664950,-273.352879,0.00035616,7]
[377628398,1754466664959,-690.75,0.00035616,14]
[377628399,1754466664969,-273.352879,0.00035616,7]
[377628400,1754466664979,-400.0,0.00035616,14]
[377628401,1754466664988,-1895.91,0.00035616,14]
[377628402,1754466664997,-400.0,0.00035616,14]
[377628403,1754466665008,-273.352879,0.00035616,7]
[377628404,1754466665018,-2236.79,0.00035616,14]
[377628405,1754466665029,-400.0,0.00035616,14]
[377628406,1754466665038,-273.352879,0.00035616,7]
[377628407,1754466665047,-1868.33,0.00035616,14]
[377628408,1754466665057,-273.352879,0.00035616,7]
[377628409,1754466665067,-887.86,0.00035616,14]
[377628410,1754466665076,-400.0,0.00035616,14]
[377628411,1754466665086,-151.0,0.00035616,7]
[377628412,1754466665096,-2324.28,0.00035616,14]